[Event "*** Titled Tuesday 3|2 Blitz (Late)"]
[Site "Chess.com"]
[Date "2016.12.06"]
[Round "2"]
[White "AlexanderL"]
[Black "dretch"]
[Result "1-0"]
[WhiteElo "2581"]
[BlackElo "2583"]
[TimeControl "180+2"]
[EndTime "17:21:46 PST"]
[Termination "AlexanderL won on time"]

1. d4 {[%clk 0:03:02]} 1... d5 {[%clk 0:02:59]} 2. c4 {[%clk 0:03:03]} 2... c6
{[%clk 0:03:00.2]} 3. cxd5 {[%clk 0:03:04.3]} 3... cxd5 {[%clk 0:03:01.4]} 4.
Bf4 {[%clk 0:03:05.4]} 4... Nc6 {[%clk 0:03:02.7]} 5. e3 {[%clk 0:03:06.8]} 5...
Nf6 {[%clk 0:03:01.8]} 6. Nc3 {[%clk 0:03:08.1]} 6... Bf5 {[%clk 0:03:02.2]} 7.
Qb3 {[%clk 0:03:08.8]} 7... Na5 {[%clk 0:03:03.3]} 8. Qa4+ {[%clk 0:03:09.9]}
8... Bd7 {[%clk 0:03:04.4]} 9. Qc2 {[%clk 0:03:11.1]} 9... e6 {[%clk 0:03:05.6]}
10. Nf3 {[%clk 0:03:10.3]} 10... Be7 {[%clk 0:03:05.3]} 11. h3 {[%clk
0:03:10.1]} 11... O-O {[%clk 0:03:01.9]} 12. Bd3 {[%clk 0:03:11.1]} 12... Rc8
{[%clk 0:03:01]} 13. O-O {[%clk 0:03:11.4]} 13... b5 {[%clk 0:02:58.9]} 14. a3
{[%clk 0:03:12.7]} 14... Nc4 {[%clk 0:02:59.1]} 15. Ne5 {[%clk 0:03:12.3]} 15...
a5 {[%clk 0:02:49]} 16. Qe2 {[%clk 0:03:07.9]} 16... b4 {[%clk 0:02:38.1]} 17.
axb4 {[%clk 0:03:07.9]} 17... axb4 {[%clk 0:02:38.3]} 18. Nxd7 {[%clk 0:03:01]}
18... Nxd7 {[%clk 0:02:23.9]} 19. Na4 {[%clk 0:02:47.9]} 19... b3 {[%clk
0:02:22]} 20. Rfc1 {[%clk 0:02:43.9]} 20... Ndb6 {[%clk 0:01:10.4]} 21. Nxb6
{[%clk 0:02:42.2]} 21... Nxb6 {[%clk 0:00:59.8]} 22. Qd1 {[%clk 0:02:37.5]}
22... Rxc1 {[%clk 0:00:39.7]} 23. Rxc1 {[%clk 0:02:37.7]} 23... Bd6 {[%clk
0:00:40.7]} 24. Bxd6 {[%clk 0:02:35.5]} 24... Qxd6 {[%clk 0:00:41.7]} 25. Qxb3
{[%clk 0:02:37]} 25... Rb8 {[%clk 0:00:42.9]} 26. Rc5 {[%clk 0:02:02.8]} 26...
Nd7 {[%clk 0:00:25.1]} 27. Rb5 {[%clk 0:01:57.9]} 27... Rxb5 {[%clk 0:00:18.9]}
28. Qxb5 {[%clk 0:01:55.6]} 28... g6 {[%clk 0:00:20]} 29. Qb7 {[%clk 0:01:52.2]}
29... Nb6 {[%clk 0:00:19.5]} 30. Bb5 {[%clk 0:01:46.5]} 30... Kg7 {[%clk
0:00:20.1]} 31. b3 {[%clk 0:01:43.5]} 31... Kf8 {[%clk 0:00:18.5]} 32. g3 {[%clk
0:01:43.8]} 32... h5 {[%clk 0:00:17.5]} 33. h4 {[%clk 0:01:44.9]} 33... Qd8
{[%clk 0:00:18.4]} 34. Bc6 {[%clk 0:01:38.2]} 34... Nc8 {[%clk 0:00:18.1]} 35.
Qb8 {[%clk 0:01:32]} 35... Ke7 {[%clk 0:00:18.7]} 36. b4 {[%clk 0:01:28.2]}
36... Nd6 {[%clk 0:00:16.5]} 37. Qa7+ {[%clk 0:01:27]} 37... Kf6 {[%clk
0:00:17.9]} 38. Qc5 {[%clk 0:01:16.8]} 38... Kg7 {[%clk 0:00:12.7]} 39. Kg2
{[%clk 0:01:08]} 39... Ne4 {[%clk 0:00:12.5]} 40. Qc2 {[%clk 0:01:07.3]} 40...
Qb6 {[%clk 0:00:10.9]} 41. b5 {[%clk 0:01:07.5]} 41... Qd8 {[%clk 0:00:11.3]}
42. Qb2 {[%clk 0:01:04.8]} 42... Nd6 {[%clk 0:00:10.9]} 43. Qb4 {[%clk
0:00:57.4]} 43... Qc7 {[%clk 0:00:09.6]} 44. Qc5 {[%clk 0:00:48.2]} 44... Nc8
{[%clk 0:00:10.3]} 45. e4 {[%clk 0:00:27.9]} 45... dxe4 {[%clk 0:00:10.7]} 46.
Bxe4 {[%clk 0:00:29.8]} 46... Qd8 {[%clk 0:00:11.1]} 47. d5 {[%clk 0:00:26.3]}
47... exd5 {[%clk 0:00:06.7]} 48. Bxd5 {[%clk 0:00:27]} 48... Nb6 {[%clk
0:00:04.1]} 49. Bb3 {[%clk 0:00:24.3]} 49... Qa8+ {[%clk 0:00:04.6]} 50. Qc6
{[%clk 0:00:23.4]} 1-0

[Event "*** Titled Tuesday 3|2 Blitz (Late)"]
[Site "Chess.com"]
[Date "2016.12.06"]
[Round "2"]
[White "Peroncio"]
[Black "spirals5"]
[Result "1-0"]
[WhiteElo "2498"]
[BlackElo "2276"]
[TimeControl "180+2"]
[EndTime "17:21:49 PST"]
[Termination "Peroncio won by resignation"]

1. e4 {[%clk 0:03:02]} 1... c5 {[%clk 0:03:00.5]} 2. Nf3 {[%clk 0:03:03]} 2...
d6 {[%clk 0:03:01.1]} 3. d4 {[%clk 0:03:04.1]} 3... cxd4 {[%clk 0:03:01.8]} 4.
Nxd4 {[%clk 0:03:05.8]} 4... Nf6 {[%clk 0:03:02.4]} 5. Nc3 {[%clk 0:03:07.3]}
5... a6 {[%clk 0:03:02.9]} 6. Bg5 {[%clk 0:03:08.7]} 6... Nbd7 {[%clk
0:03:02.7]} 7. Bc4 {[%clk 0:03:03.9]} 7... Ne5 {[%clk 0:03:01.3]} 8. Bb3 {[%clk
0:03:01.6]} 8... e6 {[%clk 0:03:01.6]} 9. Qd2 {[%clk 0:02:55.3]} 9... h6 {[%clk
0:03:01.4]} 10. Bf4 {[%clk 0:02:46]} 10... Be7 {[%clk 0:03:01.4]} 11. O-O-O
{[%clk 0:02:44.2]} 11... Bd7 {[%clk 0:02:59.8]} 12. Bg3 {[%clk 0:02:39.7]} 12...
g5 {[%clk 0:02:59]} 13. h4 {[%clk 0:02:39.1]} 13... Rg8 {[%clk 0:02:58.9]} 14.
hxg5 {[%clk 0:02:39.2]} 14... hxg5 {[%clk 0:02:59.4]} 15. Kb1 {[%clk 0:02:39]}
15... Qc7 {[%clk 0:02:57.9]} 16. Nf3 {[%clk 0:02:25.8]} 16... Nfg4 {[%clk
0:02:30.7]} 17. Rh7 {[%clk 0:02:18.8]} 17... O-O-O {[%clk 0:02:01.2]} 18. Nxe5
{[%clk 0:02:12]} 18... Nxe5 {[%clk 0:02:01.5]} 19. Bxe5 {[%clk 0:02:12.6]} 19...
dxe5 {[%clk 0:02:01.7]} 20. Rxf7 {[%clk 0:02:13.9]} 20... Be8 {[%clk 0:01:51.9]}
21. Bxe6+ {[%clk 0:02:14.6]} 21... Kb8 {[%clk 0:01:52.4]} 22. Nd5 {[%clk
0:02:15.3]} 22... Bxf7 {[%clk 0:01:48]} 23. Bxf7 {[%clk 0:02:13]} 23... Qd6
{[%clk 0:01:40.3]} 24. Bxg8 {[%clk 0:02:11.3]} 24... Rxg8 {[%clk 0:01:40.3]} 25.
Nxe7 {[%clk 0:02:04.5]} 25... Qxe7 {[%clk 0:01:40.2]} 26. Qd6+ {[%clk
0:01:56.6]} 26... Qxd6 {[%clk 0:01:40.2]} 27. Rxd6 {[%clk 0:01:58.1]} 27... Rf8
{[%clk 0:01:40.6]} 28. Rd2 {[%clk 0:01:57.2]} 28... g4 {[%clk 0:01:39.6]} 29. c3
{[%clk 0:01:51]} 29... Rf4 {[%clk 0:01:31.2]} 30. Re2 {[%clk 0:01:50.7]} 30...
Kc7 {[%clk 0:01:31.3]} 31. Kc2 {[%clk 0:01:51.2]} 31... Kd6 {[%clk 0:01:31.7]}
32. Kd3 {[%clk 0:01:50]} 32... Ke6 {[%clk 0:01:28.4]} 33. Ke3 {[%clk 0:01:50.5]}
33... Rf8 {[%clk 0:01:27.4]} 34. Rd2 {[%clk 0:01:49.6]} 34... Rh8 {[%clk
0:01:24.5]} 35. f3 {[%clk 0:01:45.5]} 35... gxf3 {[%clk 0:01:23.9]} 36. gxf3
{[%clk 0:01:46.1]} 36... Rh1 {[%clk 0:01:23.2]} 37. a3 {[%clk 0:01:46.2]} 37...
Rb1 {[%clk 0:01:21.5]} 38. Rh2 {[%clk 0:01:46.6]} 38... Kd6 {[%clk 0:01:19.1]}
39. Re2 {[%clk 0:01:43.9]} 39... Ke6 {[%clk 0:01:17.4]} 40. Kd3 {[%clk
0:01:39.6]} 40... Rd1+ {[%clk 0:01:16]} 41. Ke3 {[%clk 0:01:39.6]} 41... Rb1
{[%clk 0:01:16.6]} 42. Rf2 {[%clk 0:01:41]} 42... a5 {[%clk 0:01:16.6]} 43. Kd3
{[%clk 0:01:39.8]} 43... b5 {[%clk 0:01:14.8]} 44. c4 {[%clk 0:01:30.6]} 44...
Kd6 {[%clk 0:01:06.7]} 45. cxb5 {[%clk 0:01:29.4]} 45... Kc5 {[%clk 0:01:07.1]}
46. f4 {[%clk 0:01:23.4]} 46... exf4 {[%clk 0:01:05.8]} 47. a4 {[%clk
0:01:11.9]} 47... Ra1 {[%clk 0:01:00.3]} 48. b3 {[%clk 0:01:06.9]} 48... Rd1+
{[%clk 0:00:57.4]} 49. Kc2 {[%clk 0:01:04.3]} 49... Re1 {[%clk 0:00:52.8]} 50.
Rxf4 {[%clk 0:01:04.9]} 50... Kd4 {[%clk 0:00:52.1]} 51. b6 {[%clk 0:00:59.4]}
51... Re2+ {[%clk 0:00:45.9]} 52. Kc1 {[%clk 0:00:58.2]} 52... Rh2 {[%clk
0:00:43.1]} 53. e5+ {[%clk 0:00:54.3]} 53... Kc3 {[%clk 0:00:37]} 54. Kd1 {[%clk
0:00:51.1]} 54... Rd2+ {[%clk 0:00:33.4]} 55. Ke1 {[%clk 0:00:50.5]} 55... Rd8
{[%clk 0:00:34]} 56. e6 {[%clk 0:00:47]} 56... Kxb3 {[%clk 0:00:28.6]} 57. e7
{[%clk 0:00:46.5]} 57... Re8 {[%clk 0:00:29]} 58. Re4 {[%clk 0:00:47.9]} 1-0

[Event "*** Titled Tuesday 3|2 Blitz (Late)"]
[Site "Chess.com"]
[Date "2016.12.06"]
[Round "2"]
[White "tango_argentino"]
[Black "1e41-0"]
[Result "1/2-1/2"]
[WhiteElo "2356"]
[BlackElo "2179"]
[TimeControl "180+2"]
[EndTime "17:21:56 PST"]
[Termination "Game drawn - insufficient material"]

1. e4 {[%clk 0:03:01.9]} 1... c5 {[%clk 0:03:00.3]} 2. Nf3 {[%clk 0:03:01.4]}
2... e6 {[%clk 0:03:01.3]} 3. b3 {[%clk 0:03:02]} 3... a6 {[%clk 0:02:56.1]} 4.
Bb2 {[%clk 0:03:02.2]} 4... Nc6 {[%clk 0:02:56.4]} 5. c4 {[%clk 0:03:02.8]} 5...
Qc7 {[%clk 0:02:52.6]} 6. g3 {[%clk 0:03:03.5]} 6... Nf6 {[%clk 0:02:43.9]} 7.
e5 {[%clk 0:03:04.4]} 7... Ng4 {[%clk 0:02:44.9]} 8. Qe2 {[%clk 0:03:05.7]} 8...
d5 {[%clk 0:02:26.1]} 9. exd6 {[%clk 0:03:04]} 9... Bxd6 {[%clk 0:02:25.3]} 10.
Bxg7 {[%clk 0:03:03]} 10... Rg8 {[%clk 0:02:26.5]} 11. Bb2 {[%clk 0:03:02.6]}
11... Nb4 {[%clk 0:02:24.6]} 12. d4 {[%clk 0:02:58.6]} 12... b5 {[%clk
0:02:22.9]} 13. a3 {[%clk 0:02:57.2]} 13... Nc6 {[%clk 0:02:18.9]} 14. h3 {[%clk
0:02:55.6]} 14... Nh6 {[%clk 0:02:15.6]} 15. d5 {[%clk 0:02:54.5]} 15... Nd4
{[%clk 0:02:15.3]} 16. Nxd4 {[%clk 0:02:51.2]} 16... cxd4 {[%clk 0:02:17.2]} 17.
Bxd4 {[%clk 0:02:51.6]} 17... Nf5 {[%clk 0:02:17.9]} 18. Bb2 {[%clk 0:02:45.9]}
18... Bb7 {[%clk 0:02:14.8]} 19. Nc3 {[%clk 0:02:44]} 19... O-O-O {[%clk
0:02:14.7]} 20. cxb5 {[%clk 0:02:40.2]} 20... Rge8 {[%clk 0:02:12.3]} 21. O-O-O
{[%clk 0:02:38.3]} 21... Bxa3 {[%clk 0:02:09.2]} 22. Qc2 {[%clk 0:02:35.3]}
22... Bxb2+ {[%clk 0:02:08.4]} 23. Kxb2 {[%clk 0:02:37.2]} 23... axb5 {[%clk
0:01:50.4]} 24. Bxb5 {[%clk 0:02:37.3]} 24... Rg8 {[%clk 0:01:36.9]} 25. dxe6
{[%clk 0:02:24.1]} 25... fxe6 {[%clk 0:01:33.8]} 26. Bc4 {[%clk 0:02:22.8]}
26... Nd4 {[%clk 0:01:23]} 27. Rxd4 {[%clk 0:02:22.4]} 27... Rxd4 {[%clk
0:01:24.9]} 28. Bxe6+ {[%clk 0:02:21.1]} 28... Kb8 {[%clk 0:01:26.5]} 29. Bxg8
{[%clk 0:02:13.2]} 29... Bxh1 {[%clk 0:01:27.4]} 30. Nb5 {[%clk 0:02:06.7]}
30... Qxc2+ {[%clk 0:01:22.3]} 31. Kxc2 {[%clk 0:02:08.6]} 31... Be4+ {[%clk
0:01:22.8]} 32. Kc1 {[%clk 0:02:01.8]} 32... Rd3 {[%clk 0:01:20.8]} 33. Bc4
{[%clk 0:01:54.1]} 33... Rf3 {[%clk 0:01:19.7]} 34. Nd6 {[%clk 0:01:55.3]} 34...
Bc6 {[%clk 0:01:16.3]} 35. Nf7 {[%clk 0:01:31.5]} 35... Rxf2 {[%clk 0:01:16.1]}
36. Ne5 {[%clk 0:01:30.9]} 36... Bg2 {[%clk 0:01:14.8]} 37. h4 {[%clk
0:01:29.2]} 37... Be4 {[%clk 0:01:00.2]} 38. Kd1 {[%clk 0:01:25.5]} 38... Rg2
{[%clk 0:00:55.5]} 39. g4 {[%clk 0:01:25.9]} 39... h5 {[%clk 0:00:45.6]} 40. g5
{[%clk 0:01:19.4]} 40... Kc7 {[%clk 0:00:40.6]} 41. Bf7 {[%clk 0:01:08.1]} 41...
Kd6 {[%clk 0:00:28.4]} 42. Nc4+ {[%clk 0:01:08.2]} 42... Ke7 {[%clk 0:00:29.1]}
43. Bxh5 {[%clk 0:01:05.4]} 43... Bc2+ {[%clk 0:00:30.1]} 44. Ke1 {[%clk
0:01:05.6]} 44... Bxb3 {[%clk 0:00:31.7]} 45. Ne3 {[%clk 0:01:05.8]} 45... Rh2
{[%clk 0:00:29]} 46. Bg4 {[%clk 0:01:04.8]} 46... Be6 {[%clk 0:00:28.5]} 47.
Bxe6 {[%clk 0:00:26.4]} 47... Kxe6 {[%clk 0:00:30.4]} 48. g6 {[%clk 0:00:24.7]}
48... Rxh4 {[%clk 0:00:30.1]} 49. Kf2 {[%clk 0:00:24.8]} 49... Kf6 {[%clk
0:00:26]} 50. g7 {[%clk 0:00:26.1]} 50... Kf7 {[%clk 0:00:16.3]} 51. Kg3 {[%clk
0:00:26.7]} 51... Re4 {[%clk 0:00:16.2]} 52. Nf5 {[%clk 0:00:27.1]} 52... Re6
{[%clk 0:00:15.2]} 53. Kf4 {[%clk 0:00:27.5]} 53... Rg6 {[%clk 0:00:15.7]} 54.
g8=Q+ {[%clk 0:00:26.5]} 54... Rxg8 {[%clk 0:00:16.5]} 55. Nh6+ {[%clk
0:00:27.9]} 55... Kg7 {[%clk 0:00:17.4]} 56. Nxg8 {[%clk 0:00:29.8]} 1/2-1/2

[Event "*** Titled Tuesday 3|2 Blitz (Late)"]
[Site "Chess.com"]
[Date "2016.12.06"]
[Round "2"]
[White "sorito"]
[Black "MattyDPerrine"]
[Result "0-1"]
[WhiteElo "2357"]
[BlackElo "2219"]
[TimeControl "180+2"]
[EndTime "17:22:14 PST"]
[Termination "MattyDPerrine won by resignation"]

1. b3 {[%clk 0:03:02]} 1... c5 {[%clk 0:02:55.4]} 2. Bb2 {[%clk 0:03:03.9]} 2...
e6 {[%clk 0:02:57]} 3. e3 {[%clk 0:03:03.1]} 3... Nf6 {[%clk 0:02:58.4]} 4. Nf3
{[%clk 0:03:00.9]} 4... b6 {[%clk 0:02:59.7]} 5. d4 {[%clk 0:02:58.7]} 5... Bb7
{[%clk 0:03:01.1]} 6. Nbd2 {[%clk 0:02:58.9]} 6... Be7 {[%clk 0:03:02.1]} 7. Bd3
{[%clk 0:02:58.8]} 7... Nc6 {[%clk 0:03:03.2]} 8. a3 {[%clk 0:02:59.6]} 8... O-O
{[%clk 0:03:04.1]} 9. O-O {[%clk 0:02:59.9]} 9... Rc8 {[%clk 0:03:04]} 10. c4
{[%clk 0:03:00]} 10... Rc7 {[%clk 0:03:04.8]} 11. Rc1 {[%clk 0:02:54.9]} 11...
Qa8 {[%clk 0:03:05.8]} 12. Re1 {[%clk 0:02:55.1]} 12... Rfc8 {[%clk 0:02:55.5]}
13. Qe2 {[%clk 0:02:54.3]} 13... Na5 {[%clk 0:02:47.3]} 14. dxc5 {[%clk
0:02:44.7]} 14... bxc5 {[%clk 0:02:49.2]} 15. Bc3 {[%clk 0:02:33.5]} 15... Bxf3
{[%clk 0:02:46.5]} 16. gxf3 {[%clk 0:02:31.3]} 16... Nc6 {[%clk 0:02:46.8]} 17.
Kh1 {[%clk 0:02:28]} 17... Ne8 {[%clk 0:02:41.1]} 18. Ne4 {[%clk 0:02:27]} 18...
f5 {[%clk 0:02:33.4]} 19. Ng3 {[%clk 0:02:21.2]} 19... Bf6 {[%clk 0:02:34.7]}
20. Rg1 {[%clk 0:02:13.5]} 20... Bxc3 {[%clk 0:02:31.2]} 21. Rxc3 {[%clk
0:02:14.3]} 21... Ne5 {[%clk 0:02:32.3]} 22. e4 {[%clk 0:01:51.9]} 22... Nf6
{[%clk 0:02:22.4]} 23. exf5 {[%clk 0:01:43.3]} 23... Nxf3 {[%clk 0:02:21.4]} 24.
Ne4 {[%clk 0:01:20.5]} 24... Nd4 {[%clk 0:01:10.8]} 25. Qe3 {[%clk 0:01:14.8]}
25... exf5 {[%clk 0:01:11.6]} 26. Qg5 {[%clk 0:01:11.5]} 26... d6 {[%clk
0:00:49]} 27. Qxf6 {[%clk 0:01:09.8]} 27... fxe4 {[%clk 0:00:50.1]} 28. Bf1
{[%clk 0:01:02.2]} 28... e3+ {[%clk 0:00:32.2]} 29. Bg2 {[%clk 0:01:02.3]} 29...
gxf6 {[%clk 0:00:31.1]} 30. Bxa8+ {[%clk 0:00:57.4]} 30... Kf8 {[%clk
0:00:32.2]} 31. Bd5 {[%clk 0:00:45.9]} 31... exf2 {[%clk 0:00:17]} 32. Rg8+
{[%clk 0:00:44.4]} 32... Ke7 {[%clk 0:00:18.2]} 33. Re3+ {[%clk 0:00:46.1]}
33... Kd7 {[%clk 0:00:12.9]} 34. Rg7+ {[%clk 0:00:42.2]} 34... Kd8 {[%clk
0:00:14.3]} 35. Rg8+ {[%clk 0:00:31.3]} 35... Kd7 {[%clk 0:00:15.5]} 36. Rg7+
{[%clk 0:00:19.8]} 36... Kd8 {[%clk 0:00:16.8]} 37. Rg8+ {[%clk 0:00:20.6]}
37... Kd7 {[%clk 0:00:18.2]} 38. Kg2 {[%clk 0:00:15]} 38... Rxg8+ {[%clk
0:00:13.9]} 39. Bxg8 {[%clk 0:00:16.9]} 39... Rb7 {[%clk 0:00:08.1]} 40. Bd5
{[%clk 0:00:16.9]} 40... Rxb3 {[%clk 0:00:08.9]} 41. Kxf2 {[%clk 0:00:17.2]}
41... Rxe3 {[%clk 0:00:09.2]} 42. Kxe3 {[%clk 0:00:18.7]} 42... Nf5+ {[%clk
0:00:10.3]} 43. Kf4 {[%clk 0:00:19.9]} 43... Ne7 {[%clk 0:00:12.2]} 44. Be4
{[%clk 0:00:20.9]} 44... h6 {[%clk 0:00:13.2]} 45. h4 {[%clk 0:00:21.6]} 45...
Ke6 {[%clk 0:00:14.7]} 46. Bd3 {[%clk 0:00:22.5]} 46... f5 {[%clk 0:00:14.7]}
47. Bc2 {[%clk 0:00:23.3]} 47... Ng6+ {[%clk 0:00:16]} 48. Kg3 {[%clk
0:00:24.1]} 48... Ke5 {[%clk 0:00:17.9]} 49. h5 {[%clk 0:00:24.9]} 49... Nf4
{[%clk 0:00:19.5]} 50. Bd1 {[%clk 0:00:25.5]} 50... Ne6 {[%clk 0:00:20.5]} 51.
Bc2 {[%clk 0:00:25.4]} 51... f4+ {[%clk 0:00:20.5]} 52. Kg4 {[%clk 0:00:26.8]}
52... Nd4 {[%clk 0:00:17.4]} 53. Bd3 {[%clk 0:00:27.4]} 53... a5 {[%clk
0:00:15.4]} 54. Bb1 {[%clk 0:00:26.9]} 54... Nb3 {[%clk 0:00:14.8]} 55. Bc2
{[%clk 0:00:27.6]} 55... Nd2 {[%clk 0:00:15.7]} 56. Bd3 {[%clk 0:00:28.4]} 56...
Kd4 {[%clk 0:00:14.8]} 57. Be2 {[%clk 0:00:29.3]} 57... Ke3 {[%clk 0:00:15.7]}
58. Bd1 {[%clk 0:00:30.6]} 58... f3 {[%clk 0:00:16.7]} 59. Kg3 {[%clk
0:00:31.1]} 59... f2 {[%clk 0:00:16.9]} 60. Kg2 {[%clk 0:00:31.6]} 60... f1=Q+
{[%clk 0:00:17.7]} 0-1

[Event "*** Titled Tuesday 3|2 Blitz (Late)"]
[Site "Chess.com"]
[Date "2016.12.06"]
[Round "2"]
[White "micfel"]
[Black "capatl"]
[Result "0-1"]
[WhiteElo "2286"]
[BlackElo "2385"]
[TimeControl "180+2"]
[EndTime "17:22:16 PST"]
[Termination "capatl won by resignation"]

1. e4 {[%clk 0:03:00.2]} 1... c5 {[%clk 0:03:00.7]} 2. Nf3 {[%clk 0:03:00.1]}
2... e6 {[%clk 0:03:00.7]} 3. d4 {[%clk 0:03:00.4]} 3... cxd4 {[%clk 0:03:02.6]}
4. Nxd4 {[%clk 0:03:01.3]} 4... a6 {[%clk 0:03:04]} 5. Nc3 {[%clk 0:03:01.9]}
5... Qc7 {[%clk 0:03:04.5]} 6. Bd3 {[%clk 0:03:02]} 6... Nf6 {[%clk 0:03:04.2]}
7. O-O {[%clk 0:03:02]} 7... d6 {[%clk 0:03:05.1]} 8. Be3 {[%clk 0:03:01.2]}
8... Nbd7 {[%clk 0:03:06.2]} 9. Re1 {[%clk 0:02:59.8]} 9... Ne5 {[%clk
0:03:04.3]} 10. h3 {[%clk 0:02:59.2]} 10... Nc4 {[%clk 0:03:05.1]} 11. Bc1
{[%clk 0:02:54.8]} 11... Be7 {[%clk 0:02:57.9]} 12. b3 {[%clk 0:02:43.3]} 12...
Ne5 {[%clk 0:02:56.8]} 13. Bb2 {[%clk 0:02:43.5]} 13... O-O {[%clk 0:02:43.9]}
14. a4 {[%clk 0:02:43.8]} 14... b6 {[%clk 0:02:43.1]} 15. f4 {[%clk 0:02:44]}
15... Nxd3 {[%clk 0:02:43.3]} 16. cxd3 {[%clk 0:02:44.3]} 16... Bb7 {[%clk
0:02:34.5]} 17. Rc1 {[%clk 0:02:44.4]} 17... Qd7 {[%clk 0:02:35.2]} 18. Qf3
{[%clk 0:02:38.6]} 18... Rac8 {[%clk 0:02:25]} 19. Rc2 {[%clk 0:02:35.7]} 19...
Rc7 {[%clk 0:02:23.5]} 20. Rec1 {[%clk 0:02:35.8]} 20... Rfc8 {[%clk 0:02:23.9]}
21. Kh1 {[%clk 0:02:34.1]} 21... Bf8 {[%clk 0:02:21.6]} 22. Nd1 {[%clk
0:02:25.9]} 22... Rxc2 {[%clk 0:02:21.4]} 23. Rxc2 {[%clk 0:02:26.3]} 23... Rxc2
{[%clk 0:02:21.9]} 24. Nxc2 {[%clk 0:02:27.1]} 24... b5 {[%clk 0:02:16]} 25. a5
{[%clk 0:02:22.5]} 25... Be7 {[%clk 0:02:10.9]} 26. b4 {[%clk 0:02:21.1]} 26...
d5 {[%clk 0:01:56.3]} 27. e5 {[%clk 0:02:18.6]} 27... d4 {[%clk 0:01:51.5]} 28.
Qf2 {[%clk 0:02:18.4]} 28... Nd5 {[%clk 0:01:50.8]} 29. Qxd4 {[%clk 0:02:16.9]}
29... Qc6 {[%clk 0:01:50.5]} 30. Nde3 {[%clk 0:02:08.2]} 30... Nc7 {[%clk
0:00:45]} 31. Qc3 {[%clk 0:02:06.9]} 31... Qd7 {[%clk 0:00:41.9]} 32. Kg1 {[%clk
0:01:50.8]} 32... h6 {[%clk 0:00:42.3]} 33. Qd4 {[%clk 0:01:45.4]} 33... Qc6
{[%clk 0:00:40.4]} 34. Qc3 {[%clk 0:01:41.9]} 34... Qd7 {[%clk 0:00:41.3]} 35.
Kf2 {[%clk 0:01:33.7]} 35... g5 {[%clk 0:00:41.6]} 36. fxg5 {[%clk 0:01:27.4]}
36... Bxg5 {[%clk 0:00:40.4]} 37. Qd4 {[%clk 0:01:23.5]} 37... Qc6 {[%clk
0:00:25.7]} 38. h4 {[%clk 0:01:22.6]} 38... Be7 {[%clk 0:00:21.5]} 39. Qc3
{[%clk 0:01:13.6]} 39... Bxh4+ {[%clk 0:00:18.3]} 40. Kf1 {[%clk 0:01:08.7]}
40... Bg5 {[%clk 0:00:15.1]} 41. Qxc6 {[%clk 0:01:08.5]} 41... Bxc6 {[%clk
0:00:15.9]} 42. Kf2 {[%clk 0:01:08]} 42... Nd5 {[%clk 0:00:16]} 43. Nxd5 {[%clk
0:01:07.8]} 43... Bxd5 {[%clk 0:00:17.3]} 44. Bd4 {[%clk 0:00:56.7]} 44... Be7
{[%clk 0:00:12.8]} 45. Bc3 {[%clk 0:00:55.2]} 45... h5 {[%clk 0:00:13.3]} 46. g3
{[%clk 0:00:54.8]} 46... Kg7 {[%clk 0:00:14]} 47. Ne3 {[%clk 0:00:51.8]} 47...
Kg6 {[%clk 0:00:15.3]} 48. Nxd5 {[%clk 0:00:45]} 48... exd5 {[%clk 0:00:17.2]}
49. Kf3 {[%clk 0:00:43.7]} 49... Kf5 {[%clk 0:00:18.4]} 50. d4 {[%clk 0:00:44]}
50... Bg5 {[%clk 0:00:18.7]} 51. Be1 {[%clk 0:00:32.3]} 51... Bc1 {[%clk
0:00:19.2]} 52. Bc3 {[%clk 0:00:32.6]} 52... Ba3 {[%clk 0:00:20.1]} 53. Ke3
{[%clk 0:00:32.2]} 53... Kg4 {[%clk 0:00:20.8]} 54. Kf2 {[%clk 0:00:32.8]} 54...
Bc1 {[%clk 0:00:22.1]} 55. Kg2 {[%clk 0:00:27.9]} 55... Be3 {[%clk 0:00:22.7]}
56. Bb2 {[%clk 0:00:12.5]} 56... Bd2 {[%clk 0:00:22.1]} 0-1